bitfinex/quotes_SOLUSD_20220102
["timestamp","ask_amount","ask_price","bid_price","bid_amount"]
[1641137406711,26.635026,175.65,175.56,1.7679]
[1641137407114,27.923126,175.65,175.56,1.7679]
[1641137408112,36.464426,175.65,175.56,2.0279]
[1641137408312,36.724426,175.65,175.56,2.0279]
[1641137409718,36.724426,175.65,175.56,1.7679]
[1641137411015,36.724426,175.65,175.56,2.0279]
[1641137418656,9.8294,175.65,175.56,2.0279]
[1641137418855,9.8294,175.65,175.56,10.5688]
[1641137419055,1.2881,175.65,175.57,8.18]
[1641137419355,1.61691872,175.66,175.57,8.68]
[1641137419555,1.61691872,175.66,175.58,1.2881]
[1641137419755,24.54024872,175.68,175.58,9.4681]
[1641137419957,24.54024872,175.68,175.58,10.2281]
[1641137420358,24.54024872,175.68,175.59,8.5394]
[1641137420556,24.54024872,175.68,175.59,8.7994]
[1641137420756,24.54024872,175.68,175.59,9.2994]
[1641137421758,9.8024,175.69,175.6,1.2761]
[1641137421957,9.8024,175.69,175.6,2.0361]
[1641137427662,9.8024,175.69,175.6,10.5752]
[1641137429871,9.8024,175.69,175.6,10.3152]
[1641137430065,10.0624,175.69,175.6,1.7761]
[1641137431066,10.0624,175.69,175.6,2.0361]
[1641137431867,10.0624,175.69,175.6,0.5]
[1641137432067,10.0624,175.69,175.58,8.18]
[1641137432268,11.67931872,175.69,175.59,0.5]
[1641137432467,11.67931872,175.69,175.59,8.68]
[1641137432767,1.61691872,175.68,175.59,8.68]
[1641137432972,1.87691872,175.68,175.59,8.68]
[1641137433166,8.5403,175.67,175.59,8.68]
[1641137433367,8.5403,175.67,175.59,8.94]
[1641137433568,8.8003,175.67,175.59,8.94]
[1641137433767,8.8003,175.67,175.59,8.18]
[1641137433967,8.8003,175.67,175.59,8.68]
[1641137434567,10.41721872,175.67,175.59,7.68]
[1641137434968,10.15721872,175.67,175.59,7.94]
[1641137435167,0.26,175.67,175.59,7.94]
[1641137435768,10.41661872,175.68,175.59,7.94]
[1641137435969,10.41661872,175.68,175.6,1.2701]
[1641137436370,10.41661872,175.68,175.6,2.0301]
[1641137437774,8.7997,175.68,175.6,2.0301]
[1641137441073,8.7997,175.68,175.6,1.7701]
[1641137441276,8.5397,175.68,175.6,2.0301]
[1641137442481,8.7997,175.68,175.6,2.0301]
[1641137462419,8.5397,175.68,175.6,2.0301]
[1641137462620,1.2627,175.69,175.6,10.5692]
[1641137464222,9.802,175.69,175.6,10.5692]
[1641137467524,9.802,175.69,175.6,10.3092]
[1641137467724,10.062,175.69,175.6,10.3092]
[1641137469025,10.062,175.69,175.6,10.5692]
[1641137469230,9.802,175.69,175.6,10.5692]
[1641137469852,10.062,175.69,175.6,10.5692]
[1641137471356,10.15561872,175.7,175.61,8.18]
[1641137471552,1.61691872,175.7,175.61,8.44]
[1641137471753,1.61691872,175.7,175.61,8.94]
[1641137471954,3.95031372,175.71,175.61,8.94]
[1641137472154,3.95031372,175.71,175.62,1.2631]
[1641137472354,3.95031372,175.71,175.62,9.9431]
[1641137472557,3.95031372,175.71,175.63,8.5375]
[1641137472756,3.95031372,175.71,175.64,8.18]
[1641137472954,3.95031372,175.71,175.64,8.68]
[1641137473153,2.333395,175.71,175.64,8.94]
[1641137473956,2.333395,175.71,175.64,17.4769]
[1641137488575,2.333395,175.71,175.64,17.2169]
[1641137490278,2.333395,175.71,175.64,17.4769]
[1641137494684,2.333395,175.71,175.64,17.2169]
[1641137494882,2.593395,175.71,175.64,17.2169]
[1641137495281,28.11444452,175.71,175.64,17.2169]
[1641137495581,28.11444452,175.71,175.64,8.68]
[1641137495983,28.11444452,175.71,175.64,8.94]
[1641137496383,28.11444452,175.71,175.64,8.68]
[1641137496883,2.333395,175.71,175.64,8.68]
[1641137497084,2.333395,175.71,175.64,17.2172]
[1641137497885,2.333395,175.71,175.64,17.4772]
[1641137510629,2.333395,175.71,175.64,17.2172]
[1641137512527,2.333395,175.71,175.64,17.4772]
[1641137512727,2.333395,175.71,175.64,17.2172]
[1641137512930,2.593395,175.71,175.64,17.2172]
[1641137514131,2.593395,175.71,175.64,8.68]
[1641137514934,4.21031372,175.71,175.64,8.68]
[1641137515334,12.74851372,175.71,175.64,8.68]
[1641137515736,11.131595,175.71,175.64,8.68]
[1641137516636,2.333395,175.71,175.64,8.68]
[1641137516838,2.333395,175.71,175.64,8.94]
[1641137518440,2.333395,175.71,175.64,17.4773]
[1641137521154,39.18068296,175.6,175.59,28.4581]
[1641137521347,28.4581,175.59,175.53,8.3897]
[1641137521648,44.74171554,175.6,175.47,79.3649]
[1641137521649,5.22884169,175.53,175.47,79.3649]
[1641137521847,5.22884169,175.53,175.5,8.5422]
[1641137522078,5.22884169,175.53,175.48,8.18]
[1641137522376,5.22884169,175.53,175.44,8.18]
[1641137522886,5.48884169,175.53,175.44,8.18]
[1641137523080,5.98884169,175.53,175.44,8.18]
[1641137523479,5.48884169,175.53,175.44,8.18]
[1641137523680,5.22884169,175.53,175.44,8.18]
[1641137524279,5.22884169,175.53,175.44,8.68]
[1641137524880,5.22884169,175.53,175.44,8.18]
[1641137525282,5.22884169,175.53,175.44,8.68]
[1641137525483,5.48884169,175.53,175.44,8.18]
[1641137525882,5.48884169,175.53,175.44,8.44]
[1641137526084,14.03634169,175.53,175.41,8.5475]
[1641137526282,37.50266268,175.53,175.4,9.8313253]
[1641137526489,37.50266268,175.53,175.41,0.5]
[1641137527082,37.50266268,175.53,175.4,9.8313253]
[1641137527683,37.50266268,175.53,175.41,8.5481]
[1641137527882,37.50266268,175.53,175.41,9.0481]
[1641137528484,37.50266268,175.53,175.41,0.5]
[1641137528784,37.50266268,175.53,175.4,18.3804253]
[1641137528985,37.50266268,175.53,175.4,18.6404253]
[1641137529182,37.50266268,175.53,175.4,10.0913253]
[1641137529784,37.50266268,175.53,175.4,9.8313253]
[1641137530586,39.1195814,175.53,175.4,9.8313253]
[1641137530792,39.1195814,175.53,175.4,8.68]
[1641137530985,39.1195814,175.53,175.4,8.94]
[1641137531388,8.18,175.52,175.4,0.76]
[1641137531584,8.5502,175.47,175.4,0.5]
[1641137531784,8.5502,175.47,175.37,86.6936]
[1641137531985,8.8102,175.47,175.37,86.6936]
[1641137532185,9.79691872,175.52,175.37,86.6936]
[1641137532387,8.18,175.52,175.38,8.18]
[1641137532590,8.5487,175.51,175.4,8.5487]
[1641137532986,8.8087,175.51,175.4,9.3087]
[1641137534086,8.5487,175.51,175.4,9.3087]
[1641137534285,13.77644169,175.53,175.4,9.3087]
[1641137535488,14.53644169,175.53,175.4,9.3087]
[1641137539993,16.15336041,175.53,175.4,9.3087]
[1641137540597,14.53644169,175.53,175.4,9.0487]
[1641137541920,14.53644169,175.53,175.4,9.3087]
[1641137543023,16.15336041,175.53,175.4,9.3087]
[1641137546825,15.39336041,175.53,175.4,9.3087]
[1641137547025,6.84576041,175.53,175.41,8.18]
[1641137547225,6.84576041,175.53,175.45,8.5467]
[1641137547425,6.84576041,175.53,175.45,9.0467]
[1641137547626,5.22884169,175.53,175.45,9.3067]
[1641137548829,5.48884169,175.53,175.45,9.3067]
[1641137549732,5.22884169,175.53,175.43,8.5473]
[1641137549932,5.72884169,175.53,175.41,8.18]
[1641137550232,5.72884169,175.53,175.41,8.68]
[1641137550632,5.22884169,175.53,175.41,8.68]
[1641137551035,5.48884169,175.53,175.41,8.68]
[1641137551235,14.03614169,175.53,175.41,17.2283]
[1641137551438,14.03614169,175.53,175.41,17.4883]
[1641137552336,5.48884169,175.53,175.41,17.4883]
[1641137554035,14.03604169,175.53,175.41,16.7283]
[1641137554439,14.53604169,175.53,175.41,16.7283]
[1641137554638,14.53604169,175.53,175.41,8.18]
[1641137554937,1.61691872,175.51,175.41,8.18]
[1641137555336,1.87691872,175.51,175.41,8.18]
[1641137555536,1.87691872,175.51,175.41,8.68]
[1641137555736,8.5491,175.49,175.41,17.2288]
[1641137556139,8.8091,175.49,175.41,17.2288]
[1641137556339,0.26,175.49,175.41,17.4888]
[1641137556740,1.87691872,175.52,175.41,16.9888]
[1641137556943,1.87691872,175.52,175.41,17.4888]
[1641137558249,8.5487,175.5,175.41,17.4888]
[1641137558641,8.8087,175.5,175.41,17.4888]
[1641137559041,8.8087,175.5,175.41,16.9888]
[1641137559241,29.51296704,175.49,175.41,16.9888]
[1641137559467,8.5493,175.49,175.41,16.9888]
[1641137559641,8.8093,175.49,175.41,17.4888]
[1641137560441,8.5493,175.49,175.41,16.9888]
[1641137560640,24.52785333,175.5,175.41,17.4888]
[1641137561442,8.5485,175.51,175.41,17.4888]
[1641137562045,8.8085,175.51,175.41,17.4888]
[1641137562444,30.71367081,175.5,175.41,17.4888]
[1641137562646,39.26247081,175.5,175.41,17.4888]
[1641137562944,40.02247081,175.5,175.41,17.4888]
[1641137563145,39.52247081,175.5,175.41,17.4888]
[1641137566153,8.8088,175.5,175.41,17.4888]
[1641137569282,8.5488,175.5,175.41,17.4888]
[1641137569994,8.5478,175.52,175.41,17.4888]
[1641137570185,5.22884169,175.53,175.41,17.4888]
[1641137570984,32.52944837,175.53,175.41,17.4888]
[1641137571184,41.07644837,175.53,175.41,17.4888]
[1641137571386,41.33644837,175.53,175.41,97.1973]
[1641137572085,41.33644837,175.53,175.41,98.4995]
[1641137578399,41.07644837,175.53,175.41,98.4995]
[1641137580906,41.57644837,175.53,175.41,98.4995]
[1641137581507,41.83644837,175.53,175.41,98.4995]
[1641137583713,43.07464837,175.53,175.41,98.4995]
[1641137583911,42.57464837,175.53,175.41,98.4995]
[1641137584719,43.07464837,175.53,175.41,98.4995]
[1641137585119,42.57464837,175.53,175.41,98.4995]
[1641137589541,43.07464837,175.53,175.41,96.9373]
[1641137591744,42.57464837,175.53,175.41,96.9373]
[1641137592143,42.57464837,175.53,175.41,97.1973]
[1641137592345,42.57464837,175.53,175.44,8.5473]
[1641137592647,42.57464837,175.53,175.44,8.8073]
[1641137592844,42.57464837,175.53,175.44,9.3073]
[1641137593045,15.27404169,175.53,175.44,9.3073]
[1641137598154,14.67404169,175.53,175.44,9.3073]
[1641137605392,14.67404169,175.53,175.44,9.0473]
[1641137606793,14.67404169,175.53,175.44,9.3073]
[1641137612203,14.67404169,175.53,175.44,9.0473]
[1641137613604,14.67404169,175.53,175.44,9.3073]
[1641137620113,14.67404169,175.53,175.44,9.0473]
[1641137620313,14.67404169,175.53,175.44,0.5]
[1641137620716,15.17404169,175.53,175.43,0.5]
[1641137620917,15.17404169,175.53,175.42,9.9384]
[1641137621218,14.67404169,175.53,175.42,9.9384]
[1641137621419,14.67404169,175.53,175.42,18.4871]
[1641137621618,15.17404169,175.53,175.42,18.4871]
[1641137622417,15.17404169,175.53,175.42,18.7471]
[1641137624519,13.43584169,175.53,175.42,18.7471]
[1641137624720,4.88884169,175.53,175.42,18.7471]
[1641137630025,13.43594169,175.53,175.42,18.7471]
[1641137630848,13.43594169,175.53,175.42,18.4871]
[1641137632958,13.43594169,175.53,175.42,18.7471]
[1641137636961,13.93594169,175.53,175.42,18.7471]
[1641137637562,13.67594169,175.53,175.42,18.7471]
[1641137638563,13.17594169,175.53,175.42,18.7471]
[1641137638763,4.88884169,175.53,175.42,18.7471]
[1641137639966,4.62884169,175.53,175.42,18.7471]
[1641137641267,4.88884169,175.53,175.42,18.7471]
[1641137645674,4.88884169,175.53,175.42,18.4871]
[1641137646979,4.88884169,175.53,175.42,18.7471]
[1641137660017,4.62884169,175.53,175.42,18.7471]
[1641137667527,4.62884169,175.53,175.42,27.3816]
[1641137677238,4.62884169,175.53,175.42,27.1216]
[1641137678838,4.62884169,175.53,175.42,27.3816]
[1641137680639,4.62884169,175.53,175.42,27.1216]
[1641137682152,4.62884169,175.53,175.42,27.3816]
[1641137693184,4.62884169,175.53,175.42,129.6916]
[1641137693383,4.62884169,175.53,175.42,137.0776]
[1641137697287,4.62884169,175.53,175.42,136.8176]
[1641137698688,4.62884169,175.53,175.42,137.0776]
[1641137702394,4.62884169,175.53,175.42,136.8176]
[1641137703593,4.62884169,175.53,175.42,137.0776]
[1641137704595,4.62884169,175.53,175.42,136.8176]
[1641137704796,1.2946,175.52,175.42,129.4316]
[1641137705996,1.2946,175.52,175.42,129.6916]
[1641137706195,1.2946,175.52,175.42,129.4316]
[1641137707497,1.2946,175.52,175.42,129.6916]
[1641137720036,1.2946,175.52,175.42,129.4316]
[1641137720239,1.5546,175.52,175.42,129.4316]
[1641137721638,1.5546,175.52,175.42,129.6916]
[1641137723240,1.5546,175.52,175.42,128.4332]
[1641137731852,1.5546,175.52,175.42,119.7987]
[1641137732153,1.5546,175.52,175.42,17.2287]
[1641137733360,10.1022,175.52,175.42,17.2287]
[1641137733551,1.5546,175.52,175.42,17.4887]
[1641137735251,1.5546,175.52,175.42,18.7109]
[1641137735778,1.2946,175.52,175.42,18.7109]
[1641137736980,1.5546,175.52,175.42,18.7109]
[1641137752109,1.2946,175.52,175.42,18.7109]
[1641137753905,1.2946,175.52,175.42,18.4509]
[1641137754105,1.5546,175.52,175.42,18.4509]
[1641137755632,1.5546,175.52,175.42,18.7109]
[1641137757736,1.2946,175.52,175.42,18.7109]
[1641137758135,4.62884169,175.53,175.42,18.7109]
[1641137760237,4.62884169,175.53,175.42,27.4292]
[1641137760934,4.62884169,175.53,175.42,27.1692]
[1641137762336,4.62884169,175.53,175.42,27.4292]
[1641137764438,4.62884169,175.53,175.42,27.1692]
[1641137764639,4.88884169,175.53,175.42,18.4509]
[1641137765641,1.2629,175.52,175.42,17.2287]
[1641137765840,25.59046992,175.52,175.42,17.2287]
[1641137766040,25.85046992,175.52,175.42,17.2287]
[1641137766842,25.85046992,175.52,175.42,17.4887]
[1641137767142,1.5229,175.52,175.42,17.4887]
[1641137767344,1.2629,175.52,175.42,17.4887]
[1641137767945,1.2629,175.52,175.43,1.2699]
[1641137768151,1.2629,175.52,175.47,8.5462]
[1641137768345,4.62884169,175.53,175.47,9.0462]
[1641137769947,4.88884169,175.53,175.47,9.0462]
[1641137778863,13.43614169,175.53,175.47,0.5]
[1641137779264,13.43614169,175.53,175.46,9.0475]
[1641137782680,13.43614169,175.53,175.46,0.5]
[1641137782881,13.43614169,175.53,175.45,9.0479]
[1641137785384,4.62884169,175.53,175.45,9.0479]
[1641137785587,4.62884169,175.53,175.45,9.3079]
[1641137786887,4.62884169,175.53,175.46,8.18]
[1641137787088,4.62884169,175.53,175.49,8.5447]
[1641137787492,4.62884169,175.53,175.49,9.3047]
[1641137788890,4.62884169,175.53,175.49,9.0447]
[1641137789090,4.62884169,175.53,175.49,9.3047]
[1641137792493,4.62884169,175.53,175.49,9.0447]
[1641137794095,4.62884169,175.53,175.49,9.3047]
[1641137795697,4.62884169,175.53,175.49,9.0447]
[1641137796100,4.88884169,175.53,175.49,9.0447]
[1641137797701,4.62884169,175.53,175.49,9.0447]
[1641137798502,4.88884169,175.53,175.49,9.0447]
[1641137799706,4.62884169,175.53,175.49,9.0447]
[1641137800107,4.62884169,175.53,175.49,9.3047]
[1641137803409,4.62884169,175.53,175.49,9.0447]
[1641137803612,4.62884169,175.53,175.49,9.3047]
[1641137803812,4.62884169,175.53,175.5,8.18]
[1641137804010,4.62884169,175.53,175.51,0.50336735]
[1641137804211,4.62884169,175.53,175.52,8.5429]
[1641137804411,4.62884169,175.53,175.52,9.0429]
[1641137804610,4.62884169,175.53,175.52,9.3029]
[1641137807512,4.62884169,175.53,175.52,17.4829]
[1641137812316,4.62884169,175.53,175.52,17.2229]
[1641137813822,4.62884169,175.53,175.52,17.4829]
[1641137826864,64.7076793,175.55,175.52,17.4829]
[1641137828263,64.7076793,175.55,175.53,0.50336735]
[1641137828463,64.7076793,175.55,175.54,16.7212]
[1641137828964,64.7076793,175.55,175.54,17.4812]
[1641137833367,67.0410743,175.55,175.54,17.4812]
[1641137836674,67.0410743,175.55,175.54,9.3012]
[1641137836875,67.0410743,175.55,175.54,17.4812]
[1641137837076,67.0410743,175.55,175.54,9.3012]
[1641137837273,67.0410743,175.55,175.54,18.91787293]
[1641137860123,10.1087743,175.55,175.54,18.91787293]
[1641137860324,10.1087743,175.55,175.54,33.22883163]
[1641137860524,7.58158073,175.55,175.54,33.22883163]
[1641137868966,1.2471,175.63,175.54,33.22883163]
[1641137869566,3.580495,175.63,175.54,33.22883163]
[1641137880371,3.580495,175.63,175.54,32.96883163]
[1641137880573,1.2471,175.63,175.54,32.96883163]
[1641137880974,1.5071,175.63,175.54,32.96883163]
[1641137881174,1.2471,175.63,175.54,32.96883163]
[1641137881375,1.5071,175.63,175.54,32.96883163]
[1641137881974,1.5071,175.63,175.54,33.22883163]
[1641137882976,1.2471,175.63,175.54,33.22883163]
[1641137883387,3.580495,175.63,175.54,33.22883163]
[1641137884382,3.840495,175.63,175.54,33.22883163]
[1641137888687,3.580495,175.63,175.54,33.22883163]
[1641137889789,3.580495,175.63,175.54,32.72883163]
[1641137889989,3.840495,175.63,175.54,32.72883163]
[1641137891194,3.840495,175.63,175.54,33.22883163]
[1641137892190,10.89307315,175.62,175.54,33.22883163]
[1641137892591,10.89307315,175.62,175.54,18.91787293]
[1641137892991,11.15307315,175.62,175.54,18.15787293]
[1641137893191,11.15307315,175.62,175.54,9.97787293]
[1641137894495,11.15307315,175.62,175.54,10.73787293]
[1641137898807,0.26,175.62,175.54,10.73787293]
[1641137899110,12.122695,175.63,175.54,10.73787293]
[1641137899111,3.840495,175.63,175.54,10.73787293]
[1641137901727,3.580495,175.63,175.54,10.73787293]
[1641137903225,3.840495,175.63,175.54,10.73787293]
[1641137908536,3.840495,175.63,175.54,18.91787293]
[1641137912242,3.580495,175.63,175.54,18.91787293]
[1641137912844,3.580495,175.63,175.54,10.73787293]
[1641137913444,3.840495,175.63,175.54,18.91787293]
[1641137913643,3.580495,175.63,175.54,18.91787293]
[1641137914444,3.580495,175.63,175.55,1.3237]
[1641137914645,3.580495,175.63,175.59,8.539]
[1641137914849,2.333395,175.63,175.59,17.219]
[1641137915046,2.333395,175.63,175.59,17.479]
[1641137915446,1.3225,175.67,175.59,17.479]
[1641137915945,1.5825,175.67,175.59,17.479]
[1641137918252,1.5825,175.67,175.6,1.43667293]
[1641137918451,1.5825,175.67,175.63,8.5388]
[1641137918651,2.593395,175.67,175.63,8.5388]
[1641137918952,2.593395,175.67,175.63,9.0388]
[1641137919978,2.593395,175.67,175.63,8.5388]
[1641137920181,2.593395,175.67,175.63,9.0388]
[1641137920383,2.593395,175.67,175.63,8.5388]
[1641137920779,2.593395,175.67,175.62,8.5399]
[1641137920980,2.593395,175.67,175.62,9.0399]
[1641137923183,2.593395,175.67,175.63,1.43667293]
[1641137923383,2.593395,175.67,175.63,1.93667293]
[1641137927991,2.593395,175.67,175.63,1.43667293]
[1641137928193,1.37329563,175.66,175.63,1.43667293]
[1641137928390,2.52883261,175.65,175.63,1.43667293]
[1641137928592,5.82103258,175.65,175.61,8.5403]
[1641137928794,5.82103258,175.65,175.61,9.0403]
[1641137929195,5.82103258,175.65,175.61,0.5]
[1641137929397,5.82103258,175.65,175.58,1.93667293]
[1641137929605,5.82103258,175.65,175.58,1.69667293]
[1641137929796,5.82103258,175.65,175.58,2.19667293]
[1641137930100,7.13673258,175.65,175.58,2.19667293]
[1641137931420,7.13673258,175.65,175.61,8.5403]
[1641137931821,7.13673258,175.65,175.62,1.43667293]
[1641137932221,5.82103258,175.65,175.62,1.93667293]
[1641137934423,5.82103258,175.65,175.62,1.43667293]
[1641137935424,5.82103258,175.65,175.62,1.93667293]
[1641137935625,5.82103258,175.65,175.62,0.5]
[1641137936027,5.82103258,175.65,175.6,9.0408]
[1641137939129,5.82103258,175.65,175.61,1.43667293]
[1641137939531,5.82103258,175.65,175.61,1.93667293]
[1641137939932,5.32103258,175.65,175.61,1.93667293]
[1641137940846,0.26,175.65,175.61,1.93667293]
[1641137941037,8.8008,175.66,175.61,1.93667293]
[1641137942238,8.8008,175.66,175.61,1.43667293]
[1641137942438,70.61691872,175.65,175.55,8.5429]
[1641137942639,8.5431,175.62,175.55,8.5429]
[1641137942839,8.5431,175.62,175.55,9.0429]
[1641137943043,8.8031,175.62,175.55,9.0429]
[1641137946842,0.26,175.62,175.55,9.0429]
[1641137947141,8.8021,175.63,175.55,9.0429]
[1641137947342,0.26,175.63,175.55,9.3029]
[1641137947542,1.2543,175.64,175.55,9.3029]
[1641137947543,1.5143,175.64,175.55,9.3029]
[1641137948744,1.5143,175.64,175.55,10.5641]
[1641137962758,1.61691872,175.66,175.55,10.5641]
[1641137962759,2.91921872,175.66,175.61,8.54]
[1641137962960,2.91921872,175.66,175.61,16.194]
[1641137963157,1.61691872,175.66,175.61,16.194]
[1641137963459,2.333395,175.67,175.62,8.18]
[1641137963861,1.61691872,175.69,175.62,8.94]
[1641137964058,1.61691872,175.69,175.65,8.5374]
[1641137964458,1.61691872,175.7,175.65,9.2974]
[1641137964857,1.61691872,175.7,175.65,9.0374]
[1641137965058,1.61691872,175.7,175.65,0.5]
[1641137965059,1.87691872,175.7,175.65,0.5]
[1641137965358,0.26,175.7,175.64,8.5389]
[1641137965559,5.2975874,175.71,175.64,8.5389]
[1641137966161,8.5392,175.7,175.64,8.5389]
[1641137966561,8.7992,175.7,175.64,8.5389]
[1641137966963,8.7992,175.7,175.64,9.0389]
[1641137967363,13.76751372,175.71,175.64,0.5]
[1641137967563,5.22911372,175.71,175.64,0.5]
[1641137967763,1.61691872,175.7,175.62,28.4589]
[1641137967964,1.61691872,175.7,175.62,28.9589]
[1641137968163,1.61691872,175.7,175.62,0.5]
[1641137968368,8.5389,175.7,175.63,8.5389]
[1641137968564,8.7989,175.7,175.63,8.5389]
[1641137968766,8.7989,175.7,175.63,9.0389]
[1641137969164,5.17911372,175.71,175.63,9.0389]
[1641137969364,0.26,175.7,175.63,9.0389]
[1641137969563,5.43911372,175.71,175.63,9.0389]
[1641137970165,12.360695,175.71,175.63,9.0389]
[1641137970365,22.63434233,175.71,175.63,8.5389]
[1641137970867,1.61691872,175.7,175.63,8.5389]
[1641137971072,1.87691872,175.7,175.63,8.5389]
[1641137972191,10.41611872,175.7,175.63,8.5389]
[1641137972394,10.41611872,175.7,175.63,9.0389]
[1641137972995,1.61691872,175.69,175.63,9.0389]
[1641137973393,10.41641872,175.69,175.63,0.5]
[1641137973592,10.41641872,175.69,175.61,8.54]
[1641137973993,10.41641872,175.69,175.61,9.04]
[1641137974392,3.14934199,175.67,175.61,9.04]
[1641137974594,11.95004199,175.67,175.61,9.04]
[1641137975893,11.95004199,175.67,175.61,0.5]
[1641137976294,11.95004199,175.67,175.54,0.5]
[1641137976494,12.45004199,175.67,175.54,0.5]
[1641137976695,8.543,175.62,175.53,10.005]
[1641137976894,18.58090805,175.62,175.53,8.68]
[1641137977094,18.84090805,175.62,175.53,8.68]
[1641137977295,18.84090805,175.62,175.53,8.94]
[1641137978297,18.84090805,175.62,175.54,8.5433]
[1641137978496,18.84090805,175.62,175.54,8.8033]
[1641137978697,18.84090805,175.62,175.54,9.3033]
[1641137980302,8.803,175.62,175.54,9.3033]
[1641137981201,9.8763,175.63,175.54,9.0433]
[1641137981403,9.8763,175.63,175.54,9.3033]
[1641137981601,9.8763,175.63,175.54,9.0433]
[1641137982002,9.8763,175.63,175.54,9.3033]
[1641137982605,10.1363,175.63,175.54,9.3033]
[1641137982806,10.1363,175.63,175.54,9.0433]
[1641137983003,10.1363,175.63,175.54,9.3033]
[1641137983203,10.1363,175.63,175.54,9.0433]
[1641137983405,10.1363,175.63,175.54,9.3033]
[1641137983703,10.1363,175.63,175.54,9.0433]
[1641137983906,10.1363,175.63,175.54,9.3033]
[1641137985611,8.5424,175.63,175.54,9.0433]
[1641137985807,10.15821872,175.66,175.55,8.18]
[1641137986010,1.61691872,175.66,175.55,8.44]
[1641137986207,1.61691872,175.66,175.6,8.5407]
[1641137986409,1.61691872,175.66,175.6,23.5637]
[1641137986611,1.61691872,175.66,175.6,23.8237]
[1641137986812,2.95581872,175.69,175.6,23.8237]
[1641137987007,1.61691872,175.69,175.6,23.8237]
[1641137988010,1.87691872,175.69,175.6,23.8237]
[1641137988208,0.26,175.69,175.6,23.8237]
[1641137988608,11.67701872,175.7,175.6,23.8237]
[1641137988808,10.0601,175.7,175.6,23.8237]
[1641137989809,10.0601,175.7,175.6,23.5637]
[1641137990508,1.61691872,175.69,175.6,23.5637]
[1641137990908,1.87691872,175.69,175.6,23.5637]
[1641137991307,1.87691872,175.69,175.6,23.8237]
[1641137992110,1.61691872,175.69,175.6,23.8237]
[1641137992511,3.23814596,175.68,175.6,17.4807]
[1641137993512,3.49814596,175.68,175.6,17.4807]
[1641137996715,1.87691872,175.68,175.6,9.3007]
[1641137996917,1.61691872,175.68,175.6,9.3007]
[1641137997114,1.87691872,175.68,175.6,17.4807]
[1641137997318,1.87691872,175.68,175.6,9.3007]
[1641137997716,0.26,175.68,175.62,8.5398]
[1641137997917,0.26,175.68,175.62,9.0398]
[1641137998117,20.80007279,175.69,175.62,9.0398]
[1641138004720,8.7998,175.69,175.62,9.0398]
[1641138005122,0.26,175.69,175.62,9.0398]
[1641138005520,12.394095,175.71,175.62,9.0398]
[1641138005723,10.90889034,175.7,175.62,9.0398]
[1641138006226,11.16889034,175.7,175.62,9.0398]
[1641138007223,19.70869034,175.7,175.62,9.0398]
[1641138010729,19.70869034,175.7,175.62,8.5398]
[1641138010935,21.32560906,175.7,175.62,8.5398]
[1641138011126,21.32560906,175.7,175.62,9.0398]
[1641138013031,10.41671872,175.7,175.62,9.0398]
[1641138013230,1.87691872,175.7,175.62,9.2998]
[1641138016855,1.87691872,175.7,175.62,9.0398]
[1641138017254,0.26,175.7,175.62,9.0398]
[1641138017555,8.5394,175.7,175.62,9.0398]
[1641138017754,1.61764785,175.69,175.62,9.0398]
[1641138018154,1.87764785,175.69,175.62,9.0398]
[1641138018756,1.87691872,175.69,175.62,9.0398]
[1641138021460,4.21031372,175.69,175.62,9.0398]
[1641138023863,2.593395,175.69,175.62,9.0398]
[1641138026862,11.133395,175.69,175.62,9.0398]
[1641138029469,11.633395,175.69,175.62,9.0398]
[1641138031272,3.093395,175.69,175.62,9.0398]
[1641138033773,11.633395,175.69,175.62,9.0398]
[1641138033974,11.633395,175.69,175.62,8.5398]
[1641138034176,11.633395,175.69,175.62,9.0398]
[1641138034576,13.25031372,175.69,175.62,9.0398]
[1641138042287,13.25031372,175.69,175.62,0.5]